bitfinex/quotes_ETHUSD_20260219
["timestamp","ask_amount","ask_price","bid_price","bid_amount"]
[1771485484163,1.04977779,1985.7,1985.1,6.5801483]
[1771485484773,1.04977779,1985.7,1985.1,1.09386218]
[1771485484977,1.04977779,1985.6,1985.1,1.09386218]
[1771485485477,1.04977779,1985.7,1985.1,1.09386218]
[1771485486089,1.04977779,1985.7,1985.1,1.39059545]
[1771485486998,1.04977779,1985.7,1985.1,1.09386218]
[1771485487200,1.04977779,1985.6,1985.1,1.09386218]
[1771485489299,1.04977779,1985.6,1985.2,0.001]
[1771485490483,3.1807657,1985.8,1985.2,0.001]
[1771485490683,1.04977779,1985.8,1985.2,0.001]
[1771485490898,1.25892492,1985.9,1985.2,0.27585112]
[1771485491084,0.872,1985.8,1985.2,0.27585112]
[1771485491287,1.92177779,1985.8,1985.3,1.25925552]
[1771485495399,0.872,1985.8,1985.3,1.51673029]
[1771485495605,1.92177779,1986.0,1985.4,0.25747477]
[1771485496686,1.92177779,1986.0,1985.5,1.25912868]
[1771485501119,0.0011,1985.9,1985.5,1.25912868]
[1771485503218,1.05087779,1985.9,1985.2,0.22407679]
[1771485505798,2.30975544,1985.9,1985.3,1.25925552]
[1771485506112,1.04977779,1985.6,1985.2,0.001]
[1771485506487,1.04977779,1985.6,1985.2,1.26031438]
[1771485506807,1.04977779,1985.8,1985.2,1.4663736]
[1771485507187,0.0011,1985.9,1985.3,0.20605922]
[1771485507708,1.05087779,1985.9,1985.3,0.20605922]
[1771485509116,0.0011,1985.9,1985.4,1.45678868]
[1771485510007,0.0011,1985.9,1985.4,1.2591921]
[1771485510008,0.97334286,1985.9,1985.4,1.2591921]
[1771485510634,0.0011,1985.9,1985.4,1.45307212]
[1771485511832,0.97334286,1985.9,1985.2,0.18645253]
[1771485512018,0.97334286,1985.9,1985.3,5.48626345]
[1771485512220,0.97334286,1985.9,1985.2,0.18645253]
[1771485512221,0.97334286,1985.9,1985.2,0.001]
[1771485512529,0.97334286,1985.9,1985.3,0.18545253]
[1771485512737,0.0011,1985.8,1985.3,0.18545253]
[1771485513810,0.97334286,1985.8,1985.2,5.48726345]
[1771485514330,0.97334286,1985.8,1985.3,1.25925552]
[1771485515142,0.0011,1985.8,1985.4,5.48626345]
[1771485516740,0.0011,1985.8,1985.5,1.25912868]
[1771485519019,0.97334286,1985.8,1985.5,1.25912868]
[1771485519741,0.0011,1985.8,1985.5,1.25912868]
[1771485520341,0.97334286,1985.8,1985.5,1.25912868]
[1771485521444,0.97334286,1985.8,1985.3,1.25925552]
[1771485525243,0.0011,1985.7,1985.3,1.25925552]
[1771485528341,0.0011,1985.7,1985.2,10.66006412]
[1771485528342,0.97334286,1985.7,1985.2,0.001]
[1771485528544,0.97334286,1985.7,1985.2,1.26031234]
[1771485528937,0.97334286,1985.7,1985.2,0.001]
[1771485529253,0.97334286,1985.7,1985.2,1.26031379]
[1771485529457,0.8671,1985.7,1985.2,6.74657724]
[1771485529645,0.0011,1985.7,1985.4,5.48626345]
[1771485530552,0.0011,1985.7,1985.5,1.25912868]
[1771485532760,0.0011,1985.7,1985.3,5.13541491]
[1771485535137,0.0011,1985.7,1985.4,0.09084462]
[1771485535942,0.0011,1985.7,1985.2,0.001]
[1771485537566,0.97334286,1985.6,1985.2,0.001]
[1771485540974,0.0011,1985.6,1985.2,0.001]
[1771485541287,0.0011,1985.9,1985.5,5.48626345]
[1771485542443,0.0011,1986.0,1985.6,1.25906526]
[1771485542644,0.0011,1986.1,1985.7,5.48626345]
[1771485542875,0.0011,1986.2,1985.7,5.54598943]
[1771485543272,0.0011,1986.2,1985.7,0.05972598]
[1771485544472,0.0011,1986.2,1985.8,1.25893846]
[1771485545446,0.0011,1986.2,1985.8,6.7971193]
[1771485545675,0.0011,1986.3,1985.9,0.05191739]
[1771485546079,0.0011,1986.5,1985.8,6.74520191]
[1771485546080,0.0011,1986.5,1986.0,5.53424044]
[1771485546280,0.0011,1986.5,1986.1,0.04797699]
[1771485546447,0.0011,1986.5,1986.2,1.25868492]
[1771485549379,0.0011,1986.5,1986.3,0.001]
[1771485549551,0.0011,1986.4,1986.3,0.001]
[1771485555159,0.0011,1986.5,1986.3,0.001]
[1771485555581,0.0011,1986.5,1986.3,1.25962155]
[1771485556181,0.0011,1986.5,1986.3,0.001]
[1771485561686,0.0011,1986.4,1986.3,0.001]
[1771485563713,0.99332067,1986.7,1986.3,0.001]
[1771485564215,0.99222067,1986.6,1986.3,0.001]
[1771485565614,0.99222067,1987.1,1986.5,5.48209503]
[1771485565824,0.99222067,1986.8,1986.3,0.001]
[1771485565986,0.99222067,1986.6,1986.3,0.001]
[1771485568412,0.99222067,1987.2,1986.3,0.001]
[1771485568716,3.992857,1986.7,1986.3,0.001]
[1771485569310,0.99222067,1986.7,1986.3,0.001]
[1771485570210,0.95888653,1986.6,1986.3,0.001]
[1771485571287,5.48209503,1986.9,1986.3,0.001]
[1771485571288,0.95888653,1986.8,1986.3,0.001]
[1771485571617,0.95888653,1986.8,1985.9,5.0349932]
[1771485571618,0.362,1986.1,1985.4,0.01130103]
[1771485571984,0.362,1986.1,1985.5,1.25912868]
[1771485572205,5.03400655,1986.5,1985.8,5.48209503]
[1771485572206,5.55053,1986.5,1985.8,5.48209503]
[1771485572408,0.859,1986.4,1985.8,5.48209503]
[1771485573117,0.95888653,1986.3,1985.8,5.48209503]
[1771485573993,0.95888653,1986.5,1985.9,1.25887506]
[1771485574197,0.95888653,1986.5,1986.3,0.001]
[1771485574412,0.95888653,1986.5,1986.3,0.0002]
[1771485575830,0.8601,1986.6,1986.3,0.0002]
[1771485576192,1.81898653,1986.6,1986.3,0.0002]
[1771485577121,0.95998653,1986.6,1986.3,0.0002]
[1771485584137,0.95888653,1986.5,1986.3,0.0002]
[1771485586266,0.95888653,1986.4,1986.1,0.001]
[1771485586633,0.95888653,1986.2,1986.1,0.001]
[1771485589151,0.95888653,1986.4,1986.1,0.001]
[1771485589352,0.861,1986.4,1986.1,0.001]
[1771485589748,1.81988653,1986.4,1986.1,0.001]
[1771485591963,0.0011,1986.5,1986.1,0.001]
[1771485592269,0.861,1986.4,1986.1,0.001]
[1771485593358,0.95888653,1986.4,1986.1,0.001]
[1771485593540,0.861,1986.4,1986.1,0.001]
[1771485593947,1.81988653,1986.4,1986.1,0.001]
[1771485595782,0.95888653,1986.3,1986.1,0.001]
[1771485596147,0.861,1986.4,1986.1,0.001]
[1771485598165,0.861,1986.4,1986.1,1.2597483]
[1771485598771,0.861,1986.4,1986.2,0.001]
[1771485598965,0.0011,1986.3,1986.2,0.001]
[1771485599361,0.92422362,1986.3,1986.2,0.001]
[1771485599567,0.92422362,1986.3,1986.0,0.001]
[1771485600578,0.98040437,1986.2,1986.0,0.001]
[1771485601577,0.0011,1986.3,1986.0,0.001]
[1771485601776,0.0011,1986.4,1986.1,5.48209503]
[1771485601978,0.98150437,1986.4,1986.0,0.001]
[1771485602180,0.98040437,1986.2,1986.0,0.001]
[1771485602684,0.98040437,1986.1,1985.2,6.00421151]
[1771485602989,1.25869006,1986.2,1985.3,2.22543727]
[1771485602990,0.98040437,1986.0,1985.3,2.22543727]
[1771485603157,0.862,1985.9,1985.3,2.22543727]
[1771485604661,0.862,1985.9,1985.4,0.96618175]
[1771485604985,0.862,1986.1,1985.6,6.44827678]
[1771485605388,0.862,1986.1,1985.6,0.96618175]
[1771485605888,0.862,1986.1,1985.4,5.48209503]
[1771485606058,0.862,1986.1,1985.5,0.96618175]
[1771485606255,0.98150437,1986.4,1985.6,5.48209503]
[1771485606451,0.0011,1986.5,1986.0,0.96618175]
[1771485606779,0.0011,1986.6,1986.2,1.25868492]
[1771485608583,0.0011,1986.6,1986.0,5.03483862]
[1771485610102,0.0011,1986.6,1986.0,6.00102037]
[1771485610303,0.0011,1986.6,1986.1,6.44827678]
[1771485610801,0.0011,1986.6,1986.2,1.25868492]
[1771485611172,0.0011,1986.6,1986.3,0.001]
[1771485611371,0.0011,1986.5,1986.3,0.001]
[1771485621183,0.0011,1986.6,1986.3,0.001]
[1771485623608,0.0011,1986.5,1986.3,0.001]
[1771485626796,0.0011,1986.6,1986.3,0.001]
[1771485627005,0.0011,1986.6,1986.3,6.42930646]
[1771485628125,0.0011,1986.6,1986.4,1.25855819]
[1771485630538,0.855,1987.1,1986.5,0.93161625]
[1771485630720,0.899863,1987.2,1986.6,5.4827693]
[1771485631627,0.899863,1987.2,1986.6,6.41319297]
[1771485632549,0.792463,1987.4,1986.7,1.25836814]
[1771485633503,0.792463,1987.4,1986.7,2.18998439]
[1771485635324,0.0011,1987.3,1986.7,2.18998439]
[1771485635914,0.0011,1987.3,1986.8,0.93161625]
[1771485636617,0.900963,1987.3,1986.7,1.25836814]
[1771485637646,12.832211,1987.2,1986.6,1.25838376]
[1771485637931,0.899863,1987.1,1986.6,1.25838376]
[1771485642132,0.899863,1987.1,1986.5,5.03380572]
[1771485644242,0.899863,1987.1,1986.5,5.96542197]
[1771485647865,0.899863,1987.1,1986.6,0.001]
[1771485648860,0.900963,1987.3,1986.6,6.41538555]
[1771485649161,0.85,1987.2,1986.6,6.41538555]
[1771485649465,1.749863,1987.2,1986.6,6.41538555]
[1771485650042,1.749863,1987.2,1986.7,1.25836814]
[1771485651965,0.899863,1987.2,1986.7,1.25836814]
[1771485652667,0.8511,1987.3,1986.8,5.4827693]
[1771485652854,0.8511,1987.3,1986.8,6.41438555]
[1771485653565,0.0011,1987.3,1986.8,6.41438555]
[1771485654167,0.0011,1987.3,1987.0,5.4827693]
[1771485654665,0.8501,1987.6,1987.1,0.93161625]
[1771485654968,0.0011,1987.6,1987.2,5.4827693]
[1771485656268,0.0011,1987.6,1987.3,1.25798822]
[1771485657672,0.899863,1987.9,1987.4,5.4827693]
[1771485657860,0.899863,1988.2,1987.6,5.4827693]
[1771485658045,0.899863,1988.2,1987.5,0.93161625]
[1771485658046,0.899863,1988.0,1987.3,1.25798822]
[1771485658240,0.899863,1987.9,1987.3,1.25798822]
[1771485658552,0.899863,1987.7,1987.2,1.25800477]
[1771485658858,0.899863,1987.6,1987.2,1.25800477]
[1771485659951,0.0011,1987.5,1987.2,1.25800477]
[1771485660479,0.0011,1987.5,1987.2,5.4827693]
[1771485660686,2.65383,1987.7,1987.1,5.03234232]
[1771485660889,2.65383,1987.7,1986.7,0.85604674]
[1771485660890,0.80854443,1987.5,1986.7,0.85604674]
[1771485661051,0.8501,1987.8,1987.2,5.4827693]
[1771485661251,0.0011,1987.8,1987.2,6.33881604]
[1771485661491,0.0011,1987.8,1986.8,1.217]
[1771485661492,0.0011,1987.8,1987.4,6.33881604]
[1771485662273,0.0011,1987.8,1987.5,1.25786163]
[1771485665379,0.80964443,1987.8,1987.5,1.25786163]
[1771485669985,0.80964443,1987.8,1987.3,1.25798822]
[1771485670485,0.0011,1987.8,1987.3,2.11403496]
[1771485672457,0.0011,1987.7,1987.4,6.33881604]
[1771485672769,0.0011,1987.7,1987.4,5.4827693]
[1771485675600,0.0011,1987.7,1987.5,1.25786163]
[1771485677769,0.0011,1987.7,1987.5,2.11390837]
[1771485678759,0.0011,1987.7,1987.5,1.25786163]
[1771485678957,0.80964443,1988.0,1987.5,1.25786163]
[1771485682594,0.80964443,1988.0,1987.6,5.4827693]
[1771485682783,0.80964443,1988.0,1987.5,1.25786163]
[1771485685202,0.0011,1987.9,1987.5,1.25786163]
[1771485685903,0.80964443,1987.9,1987.5,1.25786163]
[1771485686197,0.0011,1987.9,1987.6,5.4827693]
[1771485686375,0.0011,1988.0,1987.7,1.25773507]
[1771485686780,0.0011,1988.2,1987.8,5.4827693]
[1771485687274,0.80964443,1988.2,1987.8,5.4827693]
[1771485687902,0.80964443,1988.2,1987.7,6.73080273]
[1771485689605,0.84599109,1988.6,1987.8,1.228]
[1771485689785,0.84599109,1988.5,1987.9,5.47306766]
[1771485689987,0.84599109,1988.5,1987.9,6.30267406]
[1771485690183,0.84599109,1988.7,1988.0,0.8296064]
[1771485690405,0.84599109,1988.6,1987.9,5.47306766]
[1771485690577,0.84599109,1988.6,1988.0,1.25754527]
[1771485691992,0.84599109,1988.6,1987.9,5.47306766]
[1771485691993,0.84599109,1988.5,1987.9,5.47306766]
[1771485692214,0.84599109,1988.3,1987.5,1.25782474]
[1771485692709,0.84599109,1988.2,1987.5,1.25782474]
[1771485693322,0.84599109,1988.2,1987.6,5.47306766]
[1771485694500,0.84599109,1988.2,1987.8,5.47306766]
[1771485694804,0.84599109,1988.2,1987.9,1.25760853]
[1771485695594,0.84599109,1988.2,1987.8,1.25762019]
[1771485696407,0.84599109,1988.2,1987.2,11.33486165]
[1771485696408,0.84599109,1988.1,1987.2,11.33486165]
[1771485696707,0.84599109,1988.1,1987.6,5.47306766]
[1771485697013,0.84599109,1988.1,1987.7,1.25773507]
[1771485697184,0.84709109,1988.1,1987.7,1.25773507]
[1771485698109,0.84599109,1988.0,1987.6,1.25875773]
[1771485698611,0.84599109,1988.0,1987.6,1.25879302]
[1771485699114,0.84599109,1988.0,1987.6,0.001]
[1771485699517,0.84599109,1987.9,1987.6,0.001]
[1771485704121,0.84709109,1988.1,1987.6,0.001]
[1771485705505,0.84599109,1988.0,1987.6,0.001]
[1771485707122,0.0011,1988.1,1987.7,0.8296064]
[1771485708109,0.0011,1988.1,1987.6,5.47406766]
[1771485709028,0.0011,1988.1,1987.7,1.25773507]
[1771485709909,0.0011,1988.1,1987.7,1.25873507]
[1771485710830,0.0011,1988.1,1987.8,5.47306766]
[1771485711131,0.0011,1988.1,1987.9,1.25760853]
[1771485712430,0.0011,1988.1,1987.7,1.25873507]
[1771485713731,0.0011,1988.2,1987.8,6.30267406]
[1771485714029,0.0011,1988.2,1987.8,5.47306766]
[1771485714199,0.84709109,1988.2,1987.8,5.47306766]
[1771485714828,0.84709109,1988.2,1987.9,1.25760853]
[1771485716539,0.84709109,1988.2,1987.7,1.2586743]
[1771485716841,0.84599109,1988.0,1987.7,0.001]
[1771485719312,0.84709109,1988.2,1987.7,0.001]
[1771485719820,0.84396762,1988.1,1987.7,0.001]
[1771485721045,0.0011,1988.2,1987.7,0.80916792]
[1771485721246,0.0011,1988.2,1987.8,1.25767179]
[1771485721542,0.0011,1988.2,1987.8,1.25867179]
[1771485721841,0.0011,1988.1,1987.8,1.25867179]
[1771485722341,0.0011,1988.1,1987.8,6.73173945]
[1771485726137,0.0011,1988.2,1987.8,7.53990737]
[1771485726451,0.0011,1988.2,1987.9,0.80816792]
[1771485727344,0.0011,1988.2,1987.8,6.73173945]
[1771485728133,0.78858593,1988.2,1987.8,1.25867179]
[1771485730150,0.78858593,1988.2,1987.8,0.001]
[1771485732149,0.78748593,1988.0,1987.8,0.001]
[1771485732726,0.78748593,1987.9,1987.6,0.001]
[1771485734167,0.78748593,1987.8,1987.6,0.001]
[1771485741179,0.78748593,1987.7,1987.3,0.001]
[1771485741472,0.78748593,1987.7,1987.3,0.002]
[1771485741845,1.62048593,1987.6,1987.3,0.002]
[1771485742868,0.78748593,1987.5,1987.3,0.002]
[1771485743071,2.04535097,1987.5,1987.3,0.002]
[1771485743255,0.78748593,1987.4,1987.3,0.002]
[1771485744970,0.78748593,1987.6,1987.3,0.002]
[1771485745177,1.62048593,1987.6,1987.4,0.002]
[1771485745470,1.62048593,1987.6,1987.0,7.52974047]
[1771485746672,0.833,1987.8,1987.2,6.26841134]
[1771485746878,1.62048593,1987.8,1987.2,6.26841134]
[1771485747582,0.0011,1987.5,1987.3,1.25798822]
[1771485748651,0.0011,1987.5,1987.4,0.002]
[1771485751688,0.0011,1987.6,1987.3,1.25798822]
[1771485751979,0.0011,1987.6,1987.1,2.03572073]
[1771485752175,0.0011,1987.6,1987.3,0.002]
[1771485754271,0.0011,1987.6,1987.3,1.25998822]
[1771485754459,0.0011,1987.6,1987.3,0.002]
[1771485756781,0.0011,1987.6,1987.2,6.73370015]
[1771485756972,0.0011,1987.6,1987.3,0.002]
[1771485760076,0.0011,1987.6,1987.4,0.001]
[1771485760281,0.0011,1987.5,1987.4,0.001]
[1771485762684,0.75875102,1987.5,1987.4,0.001]
[1771485763187,0.0011,1987.5,1987.4,0.001]
[1771485763791,0.75875102,1987.5,1987.4,0.001]
[1771485767116,0.75765102,1987.4,1987.1,0.001]
[1771485768581,0.0011,1987.5,1987.2,0.002]
[1771485768976,0.0011,1987.5,1987.1,6.73479968]
[1771485769302,0.0011,1987.5,1987.2,0.002]
[1771485770303,0.75875102,1987.5,1987.2,0.002]
[1771485771385,0.75765102,1987.4,1987.2,0.002]
[1771485771975,0.0011,1987.5,1987.2,0.002]
[1771485773584,0.0011,1987.5,1987.3,0.001]
[1771485774902,0.75875102,1987.5,1987.3,0.001]
[1771485776208,2.0166369,1987.5,1987.3,0.001]
[1771485776513,0.75765102,1987.4,1987.3,0.001]
[1771485777121,0.75765102,1987.4,1987.3,0.003]
[1771485778785,1.25896181,1987.5,1987.3,0.003]
[1771485778984,0.75765102,1987.7,1987.3,0.003]
[1771485781408,2.85238785,1987.7,1987.3,0.003]
[1771485781900,2.85238785,1987.7,1987.3,0.001]
[1771485782282,0.69945901,1987.6,1987.4,0.002]
[1771485785018,1.95726357,1987.6,1987.4,0.002]
[1771485785497,0.0011,1987.5,1987.4,0.002]
[1771485786521,0.0011,1987.5,1987.3,0.001]
[1771485786686,0.70055901,1987.5,1987.4,0.002]
[1771485786891,0.70055901,1987.5,1987.4,0.00043794]
[1771485787795,0.70055901,1987.5,1987.3,0.001]
[1771485787996,0.84,1987.4,1987.3,0.001]
[1771485797627,0.8411,1987.4,1987.3,0.001]
[1771485803300,0.0011,1987.4,1987.3,0.001]
[1771485803497,0.0011,1987.6,1987.3,5.47668872]
[1771485803731,0.0011,1987.6,1987.3,6.10557784]
[1771485805012,0.0011,1987.6,1987.4,1.25792492]
[1771485805419,0.0011,1987.8,1987.4,1.88146754]
[1771485807017,0.0011,1987.8,1987.5,6.09391244]
[1771485807406,0.0011,1987.8,1987.5,0.61822372]
[1771485809036,0.0011,1987.8,1987.4,1.25792492]
[1771485811964,0.0011,1987.7,1987.4,1.25892492]
[1771485816449,0.0011,1987.7,1987.4,1.85327674]
[1771485817358,0.0011,1987.7,1987.4,1.25892492]
[1771485817870,0.72948372,1987.7,1987.4,0.001]
[1771485818458,0.72838372,1987.5,1987.4,0.001]
[1771485826874,1.98624535,1987.5,1987.4,0.001]
[1771485828465,0.72838372,1987.4,1987.3,0.001]
[1771485829177,2.83130864,1987.4,1987.3,0.001]
[1771485829487,0.74821913,1987.4,1987.3,0.001]
[1771485829675,0.0011,1987.6,1987.3,0.001]
[1771485829676,0.72838372,1987.5,1987.3,0.001]
[1771485832872,1.98630864,1987.4,1987.3,0.001]
[1771485836144,0.72838372,1987.3,1987.0,0.001]
[1771485836350,1.57938372,1987.2,1987.0,0.001]
[1771485836646,0.72838372,1987.1,1987.0,0.001]
[1771485837070,0.72838372,1987.1,1986.8,0.001]
[1771485837873,0.72838372,1987.1,1986.5,0.001]
[1771485838282,0.72838372,1986.9,1986.5,0.001]
[1771485838577,1.25817815,1987.0,1986.5,0.001]
[1771485838578,0.852,1986.8,1986.5,0.001]
[1771485840347,1.47717569,1986.8,1986.5,0.001]
[1771485840576,2.73548206,1986.8,1986.5,0.001]
[1771485840760,0.62517569,1986.7,1986.5,0.001]
[1771485842779,1.88346639,1986.9,1986.5,0.001]
[1771485842956,0.853,1986.7,1986.5,0.001]
[1771485845582,1.47817569,1986.7,1986.5,0.001]
[1771485845984,1.47817569,1986.7,1986.3,0.001]
[1771485845985,0.62517569,1986.6,1986.3,0.001]
[1771485846173,0.62517569,1986.5,1986.1,0.001]
[1771485846376,2.1113734,1986.7,1986.1,1.25974669]
[1771485846377,1.88354909,1986.7,1986.1,1.25974669]
[1771485846583,0.855,1986.6,1986.1,1.25974669]
[1771485846784,2.7386145,1986.6,1986.1,1.25974669]
[1771485846986,0.62517569,1986.5,1986.1,0.001]
[1771485848990,2.11343881,1986.6,1986.1,0.001]
[1771485848991,1.88373388,1986.4,1986.1,0.001]
[1771485849694,0.62517569,1986.3,1986.1,0.001]
[1771485850055,1.48117569,1986.3,1986.2,0.001]
[1771485852464,2.73979724,1986.3,1986.0,0.001]
[1771485852664,2.73979724,1986.3,1985.2,1.087]
[1771485852665,0.62517569,1986.1,1985.5,1.25908977]
[1771485852864,5.47509043,1986.2,1985.5,1.25908977]
[1771485852865,1.48317569,1986.0,1985.5,1.25908977]
[1771485853072,0.858,1986.0,1985.3,0.50487605]
[1771485853272,0.858,1986.0,1985.3,1.25925097]
[1771485853273,1.88409455,1985.9,1985.3,1.25925097]
[1771485853570,0.62517569,1985.8,1985.3,1.25925097]
[1771485853768,2.74203571,1986.0,1985.3,1.76412702]
[1771485853985,0.62517569,1985.9,1985.3,1.76412702]
[1771485854493,0.858,1985.8,1985.3,1.76412702]
[1771485858095,1.48317569,1985.8,1985.3,1.25925097]
[1771485858463,2.74211895,1985.8,1985.3,1.25925097]
[1771485858667,0.62517569,1985.7,1985.2,0.001]
[1771485859708,0.62517569,1986.0,1985.2,1.75099518]
[1771485861703,1.8840315,1986.0,1985.3,0.48599107]
[1771485862400,0.62517569,1985.9,1985.3,0.48599107]
[1771485863306,7.59188943,1986.1,1985.3,0.48599107]
[1771485863605,0.62517569,1986.0,1985.3,0.48699107]
[1771485863788,1.88403914,1986.0,1985.4,1.2591921]
[1771485864689,0.62517569,1985.9,1985.3,1.74619446]
[1771485865785,1.88409215,1985.9,1985.3,1.74619446]
[1771485866109,2.74209215,1985.9,1985.3,1.74619446]
[1771485868988,1.48317569,1985.9,1985.3,1.74619446]
[1771485869510,0.62517569,1985.9,1985.3,1.74619446]
[1771485869701,1.48317569,1985.9,1985.3,1.74619446]
[1771485872107,0.65415413,1986.3,1985.5,0.46057352]
[1771485872311,0.65415413,1986.3,1985.3,1.26020339]
[1771485872312,0.65415413,1986.3,1985.7,0.46057352]
[1771485872691,0.65415413,1986.2,1985.3,2.94277691]
[1771485873096,0.65415413,1986.0,1985.3,2.94277691]
[1771485873305,1.25882482,1986.0,1985.3,2.94277691]
[1771485873509,0.65415413,1985.8,1985.3,2.48220339]
[1771485873706,0.65415413,1985.8,1985.3,1.26020339]
[1771485875100,0.65415413,1985.8,1985.4,0.001]
[1771485875392,0.65525413,1985.8,1985.4,0.001]
[1771485875801,0.65415413,1985.7,1985.4,0.001]
[1771485877417,0.8601,1985.8,1985.4,0.001]
[1771485877798,1.51425413,1985.8,1985.4,0.001]
[1771485878417,0.8601,1985.8,1985.4,0.001]
[1771485878618,0.65415413,1985.7,1985.4,0.001]
[1771485887705,0.65415413,1985.7,1985.2,0.001]
[1771485887706,0.65415413,1985.6,1985.2,0.001]
[1771485888926,2.11904887,1985.8,1985.0,0.001]
[1771485888927,0.65415413,1985.4,1985.0,0.001]
[1771485889298,0.65415413,1985.3,1985.0,0.001]
[1771485891244,0.65415413,1985.3,1984.9,0.001]
[1771485891443,6.14132497,1985.5,1984.9,0.001]
[1771485891624,0.863,1985.4,1984.9,0.001]
[1771485892026,1.51715413,1985.4,1984.9,0.001]
[1771485893418,0.65415413,1985.3,1984.9,0.001]
[1771485896652,0.65415413,1985.2,1984.9,0.001]
[1771485897829,2.77639562,1985.4,1984.9,0.001]
[1771485898349,0.865,1985.3,1984.9,0.001]
[1771485899253,0.865,1985.3,1985.0,0.001]
[1771485899650,0.8661,1985.3,1985.0,0.001]
[1771485902751,1.50151308,1985.3,1985.0,0.001]
[1771485906542,0.8661,1985.3,1985.0,0.001]
[1771485907663,0.0011,1985.3,1985.0,0.001]
[1771485907964,0.63651308,1985.3,1984.9,0.001]
[1771485910639,0.0011,1985.3,1984.9,0.001]
[1771485911759,0.0011,1985.3,1984.9,0.40013148]
[1771485912387,0.0011,1985.6,1985.1,0.39701117]
[1771485912548,0.0011,1985.6,1985.3,0.39701117]
[1771485912884,0.0011,1985.5,1985.3,0.39701117]
[1771485913769,0.0011,1985.8,1985.5,1.25912868]
[1771485914280,0.0011,1985.8,1985.5,1.65197985]
[1771485914466,0.0011,1986.1,1985.7,0.39285117]
[1771485915666,0.0011,1986.1,1985.9,0.3908763]
[1771485915986,0.0011,1986.5,1986.0,1.6475884]
[1771485916757,0.0011,1986.5,1986.1,0.38877672]
[1771485918182,0.0011,1986.5,1986.2,1.25868492]
[1771485919566,0.0011,1986.5,1986.2,1.64122669]
[1771485920592,0.0011,1986.7,1986.3,0.38046308]
[1771485922264,0.0011,1986.7,1986.4,1.25855819]
[1771485922481,0.0011,1986.7,1986.5,0.37638598]
[1771485922930,0.0011,1986.7,1986.4,1.25855819]
[1771485923688,0.0011,1986.7,1986.4,1.63288089]
[1771485924886,0.0011,1986.6,1986.4,1.63288089]
[1771485925089,0.0011,1986.7,1986.5,0.37021159]
[1771485927714,0.0011,1986.7,1986.6,1.25843149]
[1771485930009,0.0011,1986.9,1986.6,7.10566081]
[1771485930420,0.0011,1986.9,1986.6,8.32566081]
[1771485931992,0.0011,1986.9,1986.6,2.83848997]
[1771485934613,0.0011,1986.9,1986.6,2.47843149]
[1771485936533,0.58735742,1987.3,1986.6,8.30601134]
[1771485936698,0.58735742,1987.3,1986.7,0.34803044]
[1771485937209,0.0011,1986.8,1986.7,0.34803044]
[1771485937410,0.58735742,1987.3,1986.7,0.34803044]
[1771485937719,0.0011,1986.9,1986.7,0.34803044]
[1771485937926,0.58735742,1987.3,1986.7,0.34803044]
[1771485938125,0.0011,1987.1,1986.7,0.34803044]
[1771485939122,0.0011,1987.1,1986.8,1.25830481]
[1771485945925,0.0011,1987.1,1986.7,5.03321924]
[1771485946124,0.58845742,1987.1,1986.7,5.03321924]
[1771485946406,0.58845742,1987.1,1986.7,6.26621924]
[1771485946833,0.58845742,1987.1,1986.6,0.001]
[1771485947224,0.58845742,1987.1,1986.6,1.25942098]
[1771485947426,0.58845742,1987.1,1986.6,0.001]
[1771485947809,0.58845742,1987.1,1986.6,1.25942649]
[1771485948010,0.58735742,1987.0,1986.6,0.001]
[1771485948641,0.58735742,1986.9,1986.6,0.001]
[1771485949707,0.58735742,1986.9,1986.7,0.001]
[1771485950104,0.58845742,1986.8,1986.7,0.001]
[1771485951220,0.0011,1986.8,1986.7,0.001]
[1771485952143,0.58845742,1986.8,1986.7,0.001]
[1771485961336,0.0011,1986.8,1986.7,0.001]
[1771485963875,0.0011,1987.1,1986.7,0.001]
[1771485964436,0.53610645,1987.1,1986.7,0.001]
[1771485965865,0.53500645,1987.0,1986.7,0.001]
[1771485973569,0.0011,1987.1,1986.7,0.001]
[1771485973870,0.0011,1987.1,1986.8,0.001]
[1771485974067,0.0011,1986.9,1986.8,0.001]
[1771485974246,0.0011,1987.0,1986.8,0.001]
[1771485976863,0.0011,1987.1,1986.8,0.001]
[1771485984200,0.53610645,1987.4,1986.8,5.48054941]
[1771485984499,0.0011,1987.4,1987.0,5.47954941]
[1771485985966,0.0011,1987.4,1987.0,5.73401311]
[1771485986286,0.0011,1987.4,1987.1,1.25811484]
[1771485987500,0.53610645,1987.3,1987.1,1.25811484]
[1771485988794,0.0011,1987.4,1987.1,1.25811484]
[1771485989368,0.54001496,1987.4,1987.1,1.25811484]
[1771485992278,0.0011,1987.4,1987.1,1.25811484]
[1771485996917,0.54001496,1987.4,1987.1,1.25811484]
[1771485998091,0.0011,1987.4,1987.1,1.25811484]
[1771485999122,0.54001496,1987.4,1987.1,1.25811484]
[1771485999290,0.0011,1987.3,1987.1,1.25811484]
[1771486001224,0.54001496,1987.3,1987.1,1.25811484]
[1771486002826,0.54001496,1987.3,1987.0,1.25813794]
[1771486003140,0.0011,1987.3,1987.0,1.25813794]
[1771486003417,0.0011,1987.3,1987.0,6.73466573]
[1771486003592,0.53891496,1987.2,1987.0,1.25813794]
[1771486004191,0.0011,1987.3,1987.0,1.25813794]
[1771486004591,0.54001496,1987.3,1987.0,1.25813794]
[1771486007727,0.0011,1987.3,1987.0,1.25813794]
[1771486008815,0.0011,1987.3,1987.0,6.73466573]
[1771486010117,0.54001496,1987.3,1987.0,1.25813794]
[1771486010718,0.54001496,1987.3,1987.1,0.001]
[1771486017544,0.53891496,1987.2,1987.1,0.001]
[1771486017714,0.53891496,1987.2,1987.0,0.001]
[1771486020754,0.0011,1987.3,1987.0,0.001]
[1771486022622,0.0011,1987.3,1987.1,0.001]
[1771486022836,0.0011,1987.2,1987.1,0.001]
[1771486023317,0.48155244,1987.2,1987.1,0.001]
[1771486023915,0.0011,1987.2,1987.1,0.001]
[1771486027254,0.48155244,1987.2,1987.1,0.001]